bitfinex/quotes_ETHUSD_20250328
["timestamp","ask_amount","ask_price","bid_price","bid_amount"]
[1743172855965,0.8024,1894.0,1893.8,5.28023]
[1743172856255,6.08224,1894.0,1893.7,5.28061]
[1743172856459,11.36225,1894.0,1893.6,5.2809]
[1743172856665,5.2802,1893.9,1893.5,10.56231]
[1743172856953,0.8297,1893.8,1893.6,5.28067]
[1743172857158,0.8297,1893.8,1893.6,10.56147]
[1743172857315,0.8297,1893.8,1893.6,5.28067]
[1743172858345,0.8297,1893.8,1893.6,10.56146]
[1743172858654,0.8297,1893.8,1893.7,5.28066]
[1743172858815,5.27959,1894.1,1893.7,5.28066]
[1743172859016,0.7611,1894.0,1893.7,10.56132]
[1743172859255,0.7611,1894.0,1893.7,10.56121]
[1743172859425,6.04093,1894.0,1893.7,5.28055]
[1743172859827,6.04093,1894.0,1893.6,10.56173]
[1743172860255,6.04093,1894.0,1893.6,5.28082]
[1743172860419,11.32092,1894.0,1893.6,5.28082]
[1743172860748,5.28011,1893.9,1893.6,5.28082]
[1743172860948,3.44400711,1893.8,1893.2,5.28205]
[1743172861147,5.28214,1893.2,1892.8,5.28314]
[1743172861347,6.09684,1893.1,1892.6,5.28373]
[1743172861545,8.09868871,1893.1,1892.5,5.28393]
[1743172861924,14.10868871,1893.1,1892.5,5.2838]
[1743172862147,14.10868871,1893.1,1892.7,5.28335]
[1743172862319,17.10868871,1893.1,1892.5,5.28397]
[1743172862516,18.06319458,1893.1,1892.4,5.28412]
[1743172862752,23.40019458,1893.1,1892.3,5.28454]
[1743172863070,23.40019458,1893.1,1892.3,10.56882]
[1743172863347,5.28365,1892.7,1892.2,10.56955]
[1743172863652,5.28365,1892.7,1892.3,5.28446]
[1743172863653,0.8039,1892.6,1892.3,5.28446]
[1743172864022,6.08766,1892.6,1892.3,5.28446]
[1743172864449,0.8039,1892.6,1892.3,10.56885]
[1743172864627,0.8039,1892.6,1892.4,10.56844]
[1743172864819,0.8039,1892.6,1892.4,5.28422]
[1743172865024,6.01,1892.7,1892.5,5.28401]
[1743172865235,6.01,1892.7,1892.4,10.56838]
[1743172865435,6.01,1892.7,1892.4,5.28411]
[1743172866350,6.01,1892.7,1892.5,5.2838]
[1743172867123,6.01,1892.7,1892.6,5.28373]
[1743172867323,6.7692,1892.8,1892.6,5.28373]
[1743172867556,6.7692,1892.8,1892.5,5.28388]
[1743172867962,13.257595,1892.8,1892.4,5.28422]
[1743172868132,13.257595,1892.8,1892.3,5.28442]
[1743172868462,6.7692,1892.8,1892.5,10.56763]
[1743172868960,6.7692,1892.8,1892.5,5.28374]
[1743172869258,6.7692,1892.8,1892.5,10.56757]
[1743172869428,5.28346,1892.7,1892.3,10.56869]
[1743172869624,5.28346,1892.7,1892.3,5.28431]
[1743172869828,6.488726,1892.7,1892.3,5.28431]
[1743172870071,1.205266,1892.7,1892.4,5.28428]
[1743172870372,1.205266,1892.7,1892.3,5.28451]
[1743172870373,6.488776,1892.7,1892.3,5.28451]
[1743172870572,12.498776,1892.7,1892.3,10.56891]
[1743172870730,17.782366,1892.7,1892.3,5.2844]
[1743172871058,7.215266,1892.7,1892.4,5.28428]
[1743172871255,17.782486,1892.7,1892.3,5.2844]
[1743172871430,5.28442,1892.4,1892.1,0.05]
[1743172871637,0.8261,1892.5,1892.2,5.28465]
[1743172871835,6.11013,1892.5,1892.2,5.28465]
[1743172872157,0.8261,1892.5,1892.3,5.2845]
[1743172872339,0.8261,1892.5,1892.2,5.28465]
[1743172872655,1.3652019,1892.5,1892.2,5.28465]
[1743172873357,6.6492619,1892.5,1892.2,5.28465]
[1743172874453,5.28448,1892.4,1892.1,0.05]
[1743172874660,5.28467,1892.3,1892.1,0.05]
[1743172874857,0.7523,1892.2,1892.1,0.05]
[1743172875061,9.87135411,1892.2,1892.1,0.05]
[1743172875249,15.88135411,1892.2,1892.1,0.05]
[1743172875847,15.88675411,1892.2,1892.1,0.05]
[1743172876255,7.972397,1892.2,1892.1,0.05]
[1743172876760,15.88675411,1892.2,1892.1,0.05]
[1743172878261,19.43675411,1892.2,1892.1,0.05]
[1743172880064,19.43675411,1892.2,1892.1,1e-05]
[1743172881655,0.766,1891.8,1890.9,5.28838]
[1743172881967,2.62950711,1891.0,1890.7,5.289]
[1743172882168,8.63950711,1891.0,1890.6,5.28922]
[1743172882364,13.92771711,1891.0,1890.6,5.28922]
[1743172882534,15.92589982,1891.0,1890.6,5.28922]
[1743172882729,15.92589982,1891.0,1890.6,5.28911]
[1743172883236,7.91844711,1890.8,1890.3,5.28999]
[1743172883564,13.92798711,1890.9,1890.4,10.57944]
[1743172883762,6.01,1890.9,1890.2,0.7843]
[1743172883977,6.01,1890.9,1890.5,5.28947]
[1743172884265,6.01,1890.9,1890.7,5.28883]
[1743172884566,6.01,1891.0,1890.6,5.28911]
[1743172884762,6.01,1891.0,1890.4,0.7843]
[1743172884961,6.01,1891.0,1890.8,5.28849]
[1743172885562,6.01,1891.0,1890.8,5.28875]
[1743172885775,6.01,1891.0,1890.7,5.28903]
[1743172886071,6.01,1891.0,1890.8,5.28875]
[1743172886581,8.359,1891.4,1891.0,5.28806]
[1743172886582,0.7719,1891.4,1891.0,5.28806]
[1743172886798,0.8122,1891.6,1891.2,5.28736]
[1743172887083,0.8122,1891.6,1891.3,5.28719]
[1743172887749,6.09874,1891.6,1891.2,5.28763]
[1743172887948,0.8122,1891.6,1891.2,5.28745]
[1743172888160,6.09888,1891.6,1891.2,5.28745]
[1743172888496,0.8122,1891.6,1891.4,5.28707]
[1743172888844,0.8122,1891.6,1891.3,5.28736]
[1743172889044,0.8122,1891.6,1891.3,5.28716]
[1743172889441,0.8122,1891.6,1891.3,10.57442]
[1743172889659,0.8122,1891.6,1891.3,5.28716]
[1743172889874,0.8122,1891.6,1891.3,10.57427]
[1743172890372,9.33808211,1891.6,1891.1,5.28778]
[1743172890575,9.33808211,1891.6,1891.0,5.898176]
[1743172890576,9.33808211,1891.6,1891.2,5.28737]
[1743172891160,9.33808211,1891.6,1891.4,5.28708]
[1743172891161,0.8122,1891.6,1891.4,5.28708]
[1743172891373,0.8122,1891.6,1891.3,5.28727]
[1743172891888,0.8122,1891.6,1891.3,5.28725]
[1743172892256,6.09875,1891.6,1891.2,5.28757]
[1743172892457,5.28719,1891.4,1891.0,5.28819]
[1743172892780,5.28709,1891.4,1891.0,5.28801]
[1743172893166,5.28738,1891.3,1890.9,11.36145]
[1743172893377,5.28709,1891.4,1891.1,5.2879]
[1743172893557,5.28709,1891.4,1890.9,0.7847]
[1743172893762,5.815799,1891.4,1890.9,5.28846]
[1743172893983,0.8245,1891.3,1890.9,5.28827]
[1743172894185,6.11189,1891.3,1891.0,5.28818]
[1743172894401,6.11189,1891.3,1891.0,5.28806]
[1743172894402,0.8245,1891.3,1891.0,5.28806]
[1743172894569,0.8245,1891.3,1890.9,5.28841]
[1743172894780,0.8245,1891.3,1891.0,5.28811]
[1743172895488,5.28775,1891.2,1890.8,10.57725]
[1743172895692,5.28775,1891.2,1890.8,5.28861]
[1743172895873,5.28775,1891.2,1890.8,5.2886]
[1743172896077,5.28775,1891.2,1890.9,5.28838]
[1743172896378,5.28775,1891.2,1890.8,5.2886]
[1743172896753,11.715566,1891.2,1890.8,5.28854]
[1743172897091,6.427716,1891.2,1890.8,10.57717]
[1743172897503,6.427716,1891.2,1890.8,10.57713]
[1743172898001,6.427716,1891.2,1890.9,5.28845]
[1743172898297,6.11187,1891.3,1890.9,5.28835]
[1743172898503,6.11187,1891.3,1891.0,5.2882]
[1743172898699,11.39941,1891.3,1890.9,5.28835]
[1743172898857,5.28767,1891.2,1890.9,5.28835]
[1743172899409,6.11187,1891.3,1890.9,10.57661]
[1743172899604,11.39941,1891.3,1890.9,5.28826]
[1743172900607,0.8245,1891.3,1890.8,5.28873]
[1743172900811,5.28781,1891.2,1890.8,5.28858]
[1743172901410,5.28781,1891.2,1890.9,5.28837]
[1743172901618,5.28781,1891.2,1890.8,6.346342]
[1743172901822,10.57562,1891.2,1890.8,6.346342]
[1743172902027,5.28781,1891.2,1890.8,11.634962]
[1743172902387,5.28781,1891.2,1890.8,11.635002]
[1743172902590,5.28781,1891.2,1890.8,11.635012]
[1743172902833,3.45400711,1891.3,1890.7,5.28901]
[1743172903124,3.45400711,1891.3,1890.7,10.59496]
[1743172903276,10.5763,1891.1,1890.7,10.59496]
[1743172903481,5.28811,1891.1,1890.7,15.88381]
[1743172903681,5.2881,1891.1,1890.7,10.59488]
[1743172903910,5.2881,1891.1,1890.7,11.654358]
[1743172904121,6.05928,1891.0,1890.6,10.59028]
[1743172904283,5.28876,1890.9,1890.5,5.28956]
[1743172904612,10.57745,1890.9,1890.5,5.28956]
[1743172904785,5.28883,1890.8,1890.5,5.28956]
[1743172905387,5.28869,1890.9,1890.5,10.57893]
[1743172906413,5.28865,1890.9,1890.5,10.57883]
[1743172906604,5.28865,1890.9,1890.5,10.57888]
[1743172906785,5.28865,1890.9,1890.6,5.28929]
[1743172906983,6.42343,1890.9,1890.5,5.28937]
[1743172907299,1.13478,1890.9,1890.6,5.28915]
[1743172907505,6.0592,1891.0,1890.7,5.28903]
[1743172907893,9.05433,1891.2,1890.8,5.28854]
[1743172908229,9.05433,1891.2,1890.7,0.8237]
[1743172908230,3.0,1891.2,1890.9,5.28823]
[1743172908410,3.0,1891.2,1891.0,5.2882]
[1743172908815,3.0,1891.2,1890.9,5.28823]
[1743172909035,8.28779,1891.2,1890.8,10.58375]
[1743172909327,10.57611,1891.1,1890.7,11.40758]
[1743172909533,5.28797,1891.1,1890.7,11.40748]
[1743172909739,0.8206,1891.0,1890.8,5.28874]
[1743172910615,0.8206,1891.0,1890.7,10.58378]
[1743172910909,0.8206,1891.0,1890.8,5.28875]
[1743172911835,15.227899,1891.2,1890.8,5.2886]
[1743172912023,5.28793,1891.1,1890.8,5.2886]
[1743172912429,15.227829,1891.2,1890.8,10.57719]
[1743172912610,3.8236,1891.2,1890.9,5.28831]
[1743172912812,3.8273,1891.4,1891.0,5.2882]
[1743172913016,3.8273,1891.4,1891.1,5.28781]
[1743172913227,2.62950711,1891.8,1890.9,6.08408]
[1743172913450,6.11377,1891.7,1891.3,5.28717]
[1743172913612,7.51669871,1891.7,1891.3,5.28717]
[1743172913816,7.51669871,1891.7,1891.3,10.57438]
[1743172914020,10.57331,1891.6,1891.2,10.57856]
[1743172914502,5.28654,1891.6,1891.2,15.86605]
[1743172914911,5.28654,1891.6,1891.2,10.57849]
[1743172915104,11.85357487,1891.6,1891.2,10.57849]
[1743172915432,11.85357487,1891.6,1891.2,5.291]
[1743172915433,5.28694,1891.5,1891.2,5.291]
[1743172916325,6.07962,1891.4,1891.0,10.57621]
[1743172916632,2.07270487,1891.6,1891.3,5.28723]
[1743172916843,7.35926487,1891.6,1891.3,5.28723]
[1743172917218,7.35926487,1891.6,1891.2,5.28761]
[1743172917432,12.64599487,1891.6,1891.2,5.28756]
[1743172917644,12.64598487,1891.6,1891.2,5.28756]
[1743172917824,2.07270487,1891.6,1891.3,5.28735]
[1743172918033,5.2856,1892.0,1891.6,5.28639]
[1743172918335,5.2858,1891.9,1891.5,10.57332]
[1743172918527,5.28545,1892.0,1891.6,5.28647]
[1743172918726,6.82608617,1892.0,1891.6,10.57282]
[1743172919025,5.28578,1891.9,1891.5,10.57347]
[1743172919229,12.11164617,1892.0,1891.6,5.28652]
[1743172919731,6.82608617,1892.0,1891.6,5.28635]
[1743172920246,5.2857,1891.9,1891.6,5.28635]
[1743172920414,6.82608617,1892.0,1891.6,5.28635]
[1743172921117,6.82608617,1892.0,1891.6,10.57272]
[1743172921433,9.05286,1892.1,1891.6,10.57272]
[1743172921434,0.7677,1892.1,1891.8,5.28573]
[1743172921645,6.06101,1892.3,1891.9,5.28558]
[1743172921952,6.06101,1892.3,1891.9,5.28555]
[1743172922316,5.28488,1892.2,1891.8,5.28595]
[1743172922558,10.56996,1892.2,1891.8,5.28595]
[1743172922737,1.056996,1892.1,1891.8,5.28595]
[1743172923050,5.28488,1892.2,1891.7,5.28623]
[1743172923347,3.40590711,1892.3,1891.6,0.758]
[1743172923348,6.11383,1892.0,1891.6,5.28652]
[1743172923548,0.8283,1892.0,1891.7,5.28619]
[1743172923738,0.8283,1892.0,1891.7,10.57227]
[1743172923940,0.8283,1892.0,1891.8,5.28592]
[1743172924139,0.826,1892.3,1891.9,5.28569]
[1743172924446,0.826,1892.3,1891.8,1.59139589]
[1743172924447,0.826,1892.3,1892.1,5.28497]
[1743172924650,0.826,1892.5,1892.2,5.2846]
[1743172925665,0.826,1892.5,1892.0,1.07010131]
[1743172925666,0.826,1892.5,1892.4,5.28429]
[1743172925953,6.09396,1892.7,1892.3,5.28452]
[1743172926254,0.609396,1892.6,1892.3,5.28452]
[1743172926947,5.893146,1892.6,1892.2,6.06544]
[1743172927152,5.893146,1892.6,1892.2,11.35012]
[1743172927321,5.893146,1892.6,1892.3,5.28452]
[1743172927959,8.52266311,1892.6,1892.1,5.2851]
[1743172928138,2.62950711,1892.4,1892.0,5.28533]
[1743172928461,2.62950711,1892.4,1892.0,5.28519]
[1743172928462,0.7582,1892.3,1892.0,5.28519]
[1743172928948,0.6181554,1892.3,1892.0,5.28519]
[1743172929453,5.285,1892.2,1891.8,10.57176]
[1743172929622,5.9027554,1892.3,1891.9,10.57116]
[1743172929828,5.9027554,1892.3,1892.0,5.2853]
[1743172930160,5.9027554,1892.3,1891.9,5.28548]
[1743172930330,0.6181554,1892.3,1892.1,5.2849]
[1743172931250,0.6181554,1892.3,1892.0,5.28537]
[1743172931620,5.9027454,1892.3,1892.0,5.28537]
[1743172931821,0.6181554,1892.3,1892.0,5.28537]
[1743172932036,0.6181554,1892.3,1892.1,5.28497]
[1743172932243,3.0,1892.4,1892.1,5.28497]
[1743172932770,0.7679,1892.5,1892.0,0.7895]
[1743172932951,0.7679,1892.5,1892.2,5.28465]
[1743172933130,0.7679,1892.5,1892.2,5.28473]
[1743172933333,0.7679,1892.5,1892.3,5.28448]
[1743172933528,0.7679,1892.5,1892.2,5.28482]
[1743172934365,0.7679,1892.5,1892.2,5.28465]
[1743172935423,0.7679,1892.5,1891.7,5.28615]
[1743172935424,2.62950711,1892.3,1891.7,5.28615]
[1743172935645,5.28554,1892.0,1891.6,33.24251]
[1743172935857,0.7883,1891.9,1891.6,33.24238]
[1743172936135,5.28601,1891.8,1891.4,5.28699]
[1743172936330,6.15639171,1891.8,1891.4,5.28699]
[1743172936558,6.15639171,1891.8,1891.4,10.57395]
[1743172936729,0.87038171,1891.8,1891.4,5.28696]
[1743172936941,0.87038171,1891.8,1891.4,5.28683]
[1743172937253,6.15648171,1891.8,1891.4,10.57366]
[1743172937457,6.15648171,1891.8,1891.4,5.28683]
[1743172937771,0.7953,1891.6,1891.4,5.28699]
[1743172938297,0.7953,1891.6,1891.3,5.28723]
[1743172938431,6.94488171,1891.8,1891.4,5.28705]
[1743172938625,1.65878171,1891.8,1891.4,5.28705]
[1743172938826,5.2863,1891.7,1891.4,5.28707]
[1743172939271,1.22312017,1891.7,1891.4,5.28694]
[1743172939446,11.36058,1891.8,1891.4,5.28694]
[1743172939764,6.07438,1891.8,1891.4,10.57388]
[1743172939959,6.07438,1891.8,1891.4,5.28694]
[1743172940177,0.7884,1891.8,1891.7,5.28625]
[1743172940338,3.7848,1892.0,1891.7,5.28625]
[1743172940659,3.7848,1892.0,1891.7,5.28614]
[1743172940660,3.0,1892.0,1891.7,5.28614]
[1743172940848,8.28551,1892.0,1891.6,5.28645]
[1743172941056,6.3378247,1892.1,1891.6,1.662892]
[1743172941370,5.28553,1892.0,1891.6,10.5729]
[1743172941536,0.8008,1891.9,1891.6,5.28638]
[1743172941966,0.8008,1891.9,1891.7,5.28622]
[1743172942472,0.7718,1892.1,1891.9,5.28566]
[1743172942642,0.7718,1892.1,1891.8,5.28597]
[1743172943234,1.377467,1892.1,1891.8,5.28597]
[1743172943661,0.7718,1892.1,1891.8,5.28584]
[1743172943878,3.0,1892.3,1892.0,5.28527]
[1743172944249,0.7605,1893.0,1892.5,0.8246]
[1743172944473,0.7605,1893.4,1892.6,7.96601191]
[1743172944781,0.7605,1893.4,1893.1,5.28217]
[1743172944938,1.18477624,1893.5,1893.3,5.28166]
[1743172945433,1.18477624,1893.5,1893.4,5.2815]
[1743172946664,0.05,1893.9,1893.7,5.28054]
[1743172946988,0.05,1893.9,1893.4,5.2815]
[1743172946989,6.06,1893.9,1893.5,5.28122]
[1743172947184,0.606,1893.8,1893.5,10.56227]
[1743172947482,0.606,1893.8,1893.6,5.28086]
[1743172947686,0.606,1893.8,1893.6,10.56159]
[1743172947862,0.606,1893.8,1893.7,5.28066]
[1743172948240,6.06,1893.9,1893.6,5.28073]
[1743172948438,6.06,1893.9,1893.6,10.56147]
[1743172948976,6.06,1893.9,1893.6,5.28073]
[1743172949368,6.06,1893.9,1893.6,10.56148]
[1743172949674,6.06,1893.9,1893.7,5.28044]
[1743172949843,6.06,1893.9,1893.6,5.28087]
[1743172950050,6.74707,1893.9,1893.5,5.28109]
[1743172950445,6.74707,1893.9,1893.5,5.28107]
[1743172950672,6.06,1893.9,1893.8,5.28038]
[1743172950972,6.06,1893.9,1893.7,5.28065]
[1743172951342,6.06,1893.9,1893.4,5.2815]
[1743172951565,6.06,1893.9,1893.5,5.28101]
[1743172951771,6.06,1893.9,1893.6,5.2808]
[1743172952070,6.06,1893.9,1893.6,10.56155]
[1743172952265,6.06,1893.9,1893.4,5.28146]
[1743172952473,6.06,1893.9,1893.8,5.28038]
[1743172955254,0.05,1893.9,1893.8,5.28038]
[1743172955455,0.05,1893.9,1893.8,6.46498145]
[1743172955689,1e-05,1893.9,1893.8,6.51777717]
[1743172956057,1e-05,1893.9,1893.8,6.46498145]
[1743172961816,1e-05,1893.9,1893.8,45.28709145]
[1743172962120,1e-05,1893.9,1893.8,41.48582645]
[1743172962263,1e-05,1893.9,1893.8,43.36650245]
[1743172962463,1e-05,1893.9,1893.8,41.28237045]
[1743172962687,1e-05,1893.9,1893.8,39.53737045]
[1743172964504,1e-05,1893.9,1893.8,67.45437045]
[1743172964706,0.8326,1895.0,1894.5,6.05143]
[1743172964907,0.8326,1895.0,1894.9,5.27732]
[1743172965884,20.7231,1895.7,1895.1,5.27676]
[1743172965885,0.8326,1895.2,1895.1,5.27676]
[1743172967296,0.789,1895.5,1895.3,5.27605]
[1743172967471,0.789,1895.5,1895.2,10.55279]
[1743172967672,0.789,1895.5,1895.2,5.27631]
[1743172967911,0.789,1895.5,1895.3,5.27607]
[1743172968427,8.69422711,1895.5,1895.1,5.27653]
[1743172968640,0.7706,1895.4,1895.1,10.55312]
[1743172968923,0.7706,1895.4,1895.1,5.27653]
[1743172969215,0.7706,1895.4,1895.2,5.27631]
[1743172969518,0.7706,1895.4,1894.7,1.05633877]
[1743172969519,0.7706,1895.4,1895.0,5.27696]
[1743172969720,0.792,1895.2,1894.9,5.27714]
[1743172969919,7.67177971,1895.2,1895.0,5.27678]
[1743172970215,6.802,1895.2,1895.1,5.27676]
[1743172973322,6.8381,1895.4,1895.3,5.2762]
[1743172974933,6.01,1895.4,1895.3,5.2762]
[1743172979192,0.7563,1895.6,1895.4,5.27585]
[1743172979692,0.7563,1895.6,1895.4,5.27576]
[1743172980100,0.7563,1895.6,1895.3,5.27619]
[1743172980517,0.7507,1895.8,1895.5,5.27565]
[1743172980835,0.05,1895.9,1895.8,5.27481]
[1743172981894,0.05,1895.9,1895.7,5.27506]
[1743172982095,0.05,1895.9,1895.7,5.27491]
[1743172982295,0.05,1895.9,1895.8,6.04671]
[1743172982708,0.05,1895.9,1895.8,5.27481]
[1743172983102,0.05,1895.9,1895.6,10.48226]
[1743172983294,0.05,1895.9,1895.7,5.27488]
[1743172983629,0.05,1895.9,1895.8,5.27481]
[1743172984219,0.05,1895.9,1895.7,10.54987]
[1743172984624,0.05,1895.9,1895.7,5.27488]
[1743172984819,0.582427,1895.9,1895.6,5.2752]
[1743172985024,0.582427,1895.9,1895.6,10.55041]
[1743172985225,0.05,1895.9,1895.8,5.27481]
[1743172988030,0.05,1895.9,1895.7,10.54994]
[1743172988235,0.05,1895.9,1895.7,5.27495]
[1743172988638,0.05,1895.9,1895.6,10.55062]
[1743172988820,0.05,1895.9,1895.7,5.27506]
[1743172989136,0.05,1895.9,1895.8,5.27481]
[1743172989337,0.05,1895.9,1895.7,5.27506]
[1743172989531,0.05,1895.9,1895.7,10.55]
[1743172989904,0.05,1895.9,1895.8,5.27481]
[1743172990333,0.05,1895.9,1895.7,5.27488]
[1743172990634,0.05,1895.9,1895.7,10.54988]
[1743172990834,0.05,1895.9,1895.7,5.27501]
[1743172991136,0.05,1895.9,1895.8,5.27481]
[1743172991511,0.05,1895.9,1895.7,5.27494]
[1743172991724,0.8319,1895.8,1895.5,5.27538]
[1743172992027,0.8319,1895.8,1895.5,10.55089]
[1743172992227,0.8319,1895.8,1895.5,5.27538]
[1743172992430,0.8319,1895.8,1895.7,5.27509]
[1743172992607,0.8319,1895.8,1895.6,5.27526]
[1743172992808,0.8319,1895.8,1895.5,5.27553]
[1743172993045,0.05,1895.9,1895.8,5.27481]
[1743172993440,0.05,1895.9,1895.7,5.27509]
[1743172993618,0.05,1895.9,1895.7,10.55005]
[1743172993813,0.05,1895.9,1895.8,5.27481]
[1743172995019,0.05,1895.9,1895.7,5.27496]
[1743172995219,0.05,1895.9,1895.7,10.5499]
[1743172995442,0.05,1895.9,1895.7,10.54993]
[1743172995615,0.05,1895.9,1895.8,5.27481]
[1743172995816,0.05,1895.9,1895.7,10.54987]
[1743172996348,0.05,1895.9,1895.6,5.27526]
[1743172996540,0.05,1895.9,1895.6,10.55047]
[1743172996743,0.05,1895.9,1895.6,5.27521]
[1743172996941,0.05,1895.9,1895.7,5.27498]
[1743172997137,0.05,1895.9,1895.8,5.27481]
[1743172997363,0.05,1895.9,1895.7,5.27498]
[1743172997859,0.05,1895.9,1895.6,5.27531]
[1743172998054,5.32453,1895.9,1895.5,10.55102]
[1743172998218,5.32453,1895.9,1895.6,5.27535]
[1743172998419,10.59925,1895.9,1895.5,15.72193]
[1743172998622,5.32453,1895.9,1895.6,5.27529]
[1743172998819,0.05,1895.9,1895.6,5.27517]
[1743172999050,5.933066,1895.9,1895.6,5.27517]
[1743172999252,0.8213,1895.7,1895.5,5.171]
[1743172999551,3.45872853,1895.7,1895.1,6.06418]
[1743172999720,5.27597,1895.4,1895.1,5.27668]
[1743173000051,0.8213,1895.5,1895.2,5.27623]
[1743173000351,6.01,1895.6,1895.3,5.27601]
[1743173000524,6.01,1895.6,1895.4,5.2759]
[1743173000954,6.01,1895.6,1895.5,5.27565]
[1743173001142,12.15587,1895.9,1895.5,6.330805]
[1743173001344,17.43059,1895.9,1895.5,5.27552]
[1743173001557,12.15587,1895.9,1895.5,5.27549]
[1743173001850,5.27492,1895.8,1895.5,5.27549]
[1743173002019,14.79329853,1895.9,1895.4,5.179]
[1743173002020,14.79330853,1895.9,1895.4,5.179]
[1743173002221,12.15588,1895.9,1895.5,10.55089]
[1743173002427,14.16263885,1895.9,1895.6,5.27536]
[1743173002865,8.88805885,1895.9,1895.6,10.55059]
[1743173003068,6.8813,1895.9,1895.6,5.27523]
[1743173003457,12.15584,1895.9,1895.6,5.27523]
[1743173003984,12.15584,1895.9,1895.5,5.2755]
[1743173004272,12.15584,1895.9,1895.5,5.27548]
[1743173004477,5.2749,1895.8,1895.5,5.27548]
[1743173004773,5.27512,1895.7,1895.4,10.4549]
[1743173004939,5.27512,1895.7,1895.3,10.55227]
[1743173005134,10.55038,1895.7,1895.4,5.2759]
[1743173005335,10.5504,1895.7,1895.3,5.2761]
[1743173005566,5.27512,1895.7,1895.3,10.55216]
[1743173005766,6.0564,1895.6,1895.2,11.23692]
[1743173006071,0.7808,1895.6,1895.3,5.27618]
[1743173006270,6.0562,1895.6,1895.3,5.27618]
[1743173006569,0.7808,1895.6,1895.3,5.2761]
[1743173006971,0.7808,1895.6,1895.4,5.2759]
[1743173007155,0.7808,1895.6,1895.5,5.27565]
[1743173007361,0.8055,1895.8,1895.5,5.27548]
[1743173007569,0.8055,1895.8,1895.5,10.55099]
[1743173007773,0.8055,1895.8,1895.5,5.27548]
[1743173008070,6.08035,1895.8,1895.5,5.27548]
[1743173008783,5.27509,1895.7,1895.4,5.27592]
[1743173008942,5.27509,1895.7,1895.4,5.27578]
[1743173009140,8.71777853,1895.8,1895.4,10.5515]
[1743173009362,6.08035,1895.8,1895.5,5.27555]
[1743173010145,0.8055,1895.8,1895.6,5.27534]
[1743173010490,6.08034,1895.8,1895.5,5.27555]
[1743173010992,5.2751,1895.7,1895.4,5.27573]
[1743173011762,13.096919,1895.8,1895.4,5.27573]
[1743173011942,7.821939,1895.8,1895.4,10.55151]
[1743173013674,7.821939,1895.8,1895.4,10.55146]
[1743173013851,7.821939,1895.8,1895.5,5.27564]
[1743173014047,13.096939,1895.8,1895.4,10.55155]
[1743173014265,5.27514,1895.7,1895.4,5.27573]
[1743173015491,5.27625,1895.3,1895.1,27.894]
[1743173015691,5.27648,1895.2,1895.1,27.894]
[1743173015991,5.27733,1894.9,1894.5,5.27832]
[1743173016192,0.7603,1895.0,1894.7,5.27774]
[1743173016569,11.28679,1895.1,1894.8,0.751]
[1743173016570,6.01,1895.1,1894.8,0.751]
[1743173016773,6.01,1895.1,1895.0,5.27704]
[1743173016987,11.28611,1895.4,1895.0,5.2769]
[1743173017322,6.01,1895.4,1895.1,0.751]
[1743173017524,6.01,1895.4,1895.2,5.27648]
[1743173018190,6.01,1895.4,1895.1,6.02752]
[1743173018818,6.01,1895.4,1895.1,0.751]
[1743173019034,6.01,1895.4,1895.2,5.27646]
[1743173019487,6.01,1895.4,1895.1,6.0276]
[1743173019688,11.28612,1895.4,1895.0,5.27678]
[1743173019918,5.27666,1895.2,1894.8,10.44343]
[1743173020109,5.27666,1895.2,1894.8,10.44334]
[1743173020308,6.07043,1895.3,1894.9,5.27706]
[1743173020707,5.27658,1895.2,1894.9,5.27706]
[1743173020909,6.07042,1895.3,1894.9,5.27721]
[1743173021330,5.27649,1895.2,1894.8,10.44351]
[1743173021631,5.27677,1895.1,1894.8,5.166]
[1743173021827,5.27717,1895.0,1894.8,5.166]
[1743173022131,5.27717,1895.0,1894.6,15.72101]
[1743173022501,10.55439,1895.0,1894.6,10.44297]
[1743173022702,10.55439,1895.0,1894.5,10.44243]
[1743173022703,5.27761,1894.8,1894.5,10.44243]
[1743173022920,0.794,1894.9,1894.6,5.27804]
[1743173023230,0.794,1894.9,1894.6,10.55602]
[1743173023438,0.794,1894.9,1894.6,10.556]
[1743173023745,0.794,1894.9,1894.6,5.27799]
[1743173025058,0.794,1894.9,1894.6,10.55604]
[1743173025230,11.28678,1895.1,1894.7,5.27772]
[1743173025550,18.75023085,1895.1,1894.7,5.27772]
[1743173025714,13.47320085,1895.1,1894.7,5.27772]
[1743173025918,6.01,1895.1,1895.0,5.27704]
[1743173026129,5.27622,1895.3,1894.9,10.43608]
[1743173026348,5.27622,1895.3,1894.9,15.71323]
[1743173026851,6.8064,1895.4,1894.9,5.159]
[1743173027152,0.7846,1895.6,1895.3,5.27605]
[1743173027457,4.991571,1895.6,1895.3,5.27605]
[1743173027665,1.991571,1895.6,1895.3,5.27605]
[1743173027826,6.01,1895.7,1895.5,5.27565]
[1743173028026,6.01,1895.7,1895.4,10.55162]
[1743173028264,6.01,1895.7,1895.4,5.27571]
[1743173028574,11.2851,1895.7,1895.4,5.27571]
[1743173029450,6.01,1895.7,1895.5,5.27559]
[1743173029619,6.01,1895.7,1895.4,5.27571]
[1743173030391,6.01,1895.7,1895.4,10.55148]
[1743173031081,6.01,1895.7,1895.5,5.27557]